{"text_format":"3","workbook":"xlsx","n_sheets":3,"sheets":["Сводка","Покупка автомобиля","Совместное пользование"],"not_rendered":{"charts":1,"defined_names":33},"read":"whole","date_system":"1900"}

{"sheet":"Сводка","index":0,"n_rows":16,"n_cols":4,"rows_kept":16}
[null,"Покупка автомобиля или совместное пользование автомобилем"]
[null,"Средние показатели поездки"]
[null,"Среднее число поездок в день",2]
[null,"Среднее время каждой поездки",20,"мин (с)"]
[null,"Среднее расстояние каждой поездки",{"v":10,"d":"10.00"},"километры"]
[null,"Годовое расстояние",{"$f":"IFERROR(СреднееКолвоПоездокВДень*СреднееРасстояниеПоездки*365,\"\")","v":{"v":7300,"d":"7,300"}},"километры"]
[null,"Стоимость по времени"]
[null,"Почасовая ставка",{"v":20,"d":"20.00 ₽"}]
[null,"Сводка годовых затрат"]
[" ","Столбец1","Покупка автомобиля","Совместное пользование"]
[null,"Затраты на приобретение",{"$f":"ГодоваяСтоимостьПокупки","v":{"v":7187.314844765674,"d":"7,187.31 ₽"}},"–"]
[null,"Затраты на использование автомобиля",{"$f":"ГодоваяСтоимостьИспользования","v":{"v":2990,"d":"2,990.00 ₽"}},"–"]
[null,"Затраты на топливо",{"$f":"ГодоваяСтоимостьТоплива","v":{"v":617.6923076923076,"d":"617.69 ₽"}},"–"]
[null,"Тариф поездки","–",{"$f":"ГодоваяСтоимостьТарифа","v":{"v":12340.65,"d":"12,340.65 ₽"}}]
[null,"Стоимость по времени",{"$f":"ГодоваяСтоимостьВремени_Покупка","v":{"v":7300,"d":"7,300.00 ₽"}},{"$f":"ГодоваяСтоимостьВремени_Каршеринг","v":{"v":2190,"d":"2,190.00 ₽"}}]
[null,"Общие годовые затраты",{"$f":"SUBTOTAL(109,Таблица7[Покупка автомобиля])","v":{"v":18095.007152457983,"d":"18,095.01 ₽"}},{"$f":"SUBTOTAL(109,Таблица7[Совместное пользование])","v":{"v":14530.65,"d":"14,530.65 ₽"}}]

{"sheet":"Покупка автомобиля","index":1,"n_rows":28,"n_cols":4,"rows_kept":28}
[null,"Покупка автомобиля"]
[null,"Затраты на приобретение"]
[]
[null,"Цена автомобиля",{"v":30000,"d":"30,000.00 ₽"}]
[null,"Налог с продаж",{"v":0.0575,"d":"0.06 ₽"}]
[null,"Сборы при покупке",{"v":220,"d":"220.00 ₽"}]
[null,"Первоначальный взнос",{"v":3000,"d":"3,000.00 ₽"},"месяцы"]
[null,"Срок кредита",{"v":60,"d":"60.00 ₽"}]
[null,"Процентная ставка",{"v":0.045,"d":"0.05 ₽"}]
[null,"Годовые затраты на приобретение",{"$f":"IFERROR(-PMT(ПроцентнаяСтавка,СрокЗайма/12,СтоимостьАвтомобиля*(1+НалогСПродаж)-ПервыйВзнос)+(СтоимостьПокупки+ПервыйВзнос)/(СрокЗайма/12),\"\")","v":{"v":7187.314844765674,"d":"7,187.31 ₽"}}]
[null,{"$f":"IF(ГодоваяСтоимостьПокупки=\"\",\"\",\"Для займа сроком на \" & TEXT(СрокЗайма/12,\"0,0\") & \" лет\")","v":"Для займа сроком на 5,0 лет"}]
[null,"Затраты на использование автомобиля"]
[null,"Ремонт и обслуживание",{"v":1000,"d":"1,000.00 ₽"},"в год"]
[null,"Страховка",{"v":815,"d":"815.00 ₽"},"в год"]
[null,"Регистрация и налоги",{"v":75,"d":"75.00 ₽"},"в год"]
[null,"Стоянка",{"v":500,"d":"500.00 ₽"},"в год"]
[null,"Налог на недвижимость (гараж)",{"v":500,"d":"500.00 ₽"},"в год"]
[null,"Другие расходы на гараж",{"v":100,"d":"100.00 ₽"},"в год"]
[null,"Ежегодная стоимость использования",{"$f":"SUBTOTAL(109,Таблица3[Столбец3])","v":{"v":2990,"d":"2,990.00 ₽"}}]
[null,"Затраты на топливо"]
[null,"Стоимость топлива",{"v":3.3,"d":"3.30 ₽"},"на литр"]
[null,"Топливная эффективность",39,"км/литр"]
[null,"Годовые затраты на топливо",{"$f":"IFERROR(ОбщийПробег/РасходТоплива*СтоимостьТоплива,\"\")","v":{"v":617.6923076923076,"d":"617.69 ₽"}}]
[null,{"$f":"IF(ГодоваяСтоимостьТоплива=\"\",\"\",\"На основании суммарного годового пробега \" & TEXT(ОбщийПробег,\"# ##0\") & \" миль\")","v":"На основании суммарного годового пробега 7 300 миль"}]
[null,"Стоимость по времени"]
[null,"Среднее время стоянки",10,"мин"]
[null,"Годовая стоимость по времени",{"$f":"IFERROR((СреднееВремяПоездки+СреднееВремяПарковки)*СреднееКолвоПоездокВДень/60*ТарифВЧас*365,\"\")","v":{"v":7300,"d":"7,300.00 ₽"}}]
[null,{"$f":"IF(ГодоваяСтоимостьВремени_Покупка=\"\",\"\",\"На основании \" & СреднееКолвоПоездокВДень & \" поездок в день, каждая поездка \" & СреднееВремяПоездки + СреднееВремяПарковки & \" минут, ставка \" & TEXT(ТарифВЧас,\"# ##0,00 ₽\") & \" долларов в час\")","v":"На основании 2 поездок в день, каждая поездка 30 минут, ставка 20,00 ₽ долларов в час"}]

{"sheet":"Совместное пользование","index":2,"n_rows":14,"n_cols":4,"rows_kept":14}
[null,"Совместное пользование"]
[null,"Тариф совместного пользования"]
[null,"Базовый тариф",{"v":2.3,"d":"2.30 ₽"},"за поездку"]
[null,"Тариф за расстояние",{"v":1,"d":"1.00 ₽"},"за километр"]
[null,"Тариф по времени",{"v":0.12,"d":"0.12 ₽"},"за минуту"]
[null,"Средний пиковый коэффициент",{"v":2.5,"d":"2.50"}]
[null,"Процент поездок в пиковое время",{"v":0.1,"d":"10%"}]
[null,"Годовая стоимость по тарифу",{"$f":"IFERROR((БазовыйТариф+ТарифРасстояние*СреднееРасстояниеПоездки+ТарифВремя*СреднееВремяПоездки)*СреднееКолвоПоездокВДень*365*((1-ПроцентПоездокВЧасПик)+СреднийПиковыйКоэффициент*ПроцентПоездокВЧасПик),\"\")","v":{"v":12340.65,"d":"12,340.65 ₽"}}]
[null,{"$f":"IF(ГодоваяСтоимостьТарифа=\"\",\"\",\"На основании \" & СреднееКолвоПоездокВДень & \" поездок в день, каждая поездка \" & СреднееВремяПоездки & \" минут, \" & СреднееВремяПарковки & \" миль\")","v":"На основании 2 поездок в день, каждая поездка 20 минут, 10 миль"}]
[null,"Стоимость по времени"]
[null,"Среднее время ожидания на поездку",{"v":5,"d":"5.00 ₽"},"мин"]
[null,"Продуктивное время при поездке",{"v":0.8,"d":"0.80 ₽"}]
[null,"Годовая стоимость по времени",{"$f":"IFERROR((СреднееВремяОжидания+СреднееВремяПоездки*(1-ПроцентПроизводительности))*СреднееКолвоПоездокВДень/60*ТарифВЧас*365,\"\")","v":{"v":2190,"d":"2,190.00 ₽"}}]
[null,{"$f":"IF(ГодоваяСтоимостьВремени_Каршеринг=\"\",\"\",\"На основании \" & СреднееКолвоПоездокВДень & \" поездок в день, каждая поездка \" & СреднееВремяПоездки & \" минут, ставка \" & TEXT(ТарифВЧас,\"# ##0,00 ₽\") & \" долларов в час\")","v":"На основании 2 поездок в день, каждая поездка 20 минут, ставка 20,00 ₽ долларов в час"}]